Cogmind - Beta 14 @@@ ROGUE MODE // 2024.09.06 @ 21:40:55 Player: JohnnyDongs Result: Destroyed by 15-XZ1(R) with Subdweller Laser Performance ------------- Evolutions (0) 0 Regions Visited (2) 400 Robots Destroyed (43) 215 Value Destroyed (818) 818 Prototype IDs (2) 40 Alien Tech Used (0) 0 Bonus (0) 0 TOTAL SCORE: 1473 Bonus ------- None Cogmind --------- Core Integrity 0/250 Matter 231/300 Energy 265/265 System Corruption 0% Temperature Cool (6) Movement Treading (240) Ox1 Location -10/Subcaves Parts ------- > --- POWER (1) -------- Improved Ion Engine > --- PROPULSION (2) --- Light Treads > --- UTILITY (2) ------ Medium Storage Unit Structural Scanner > --- WEAPON (2) ------- Improved Light Cannon Improved Light Cannon > --- INVENTORY (10) --- Light Ion Engine Medium Matter Pod (90) Improved Terrain Scanner Hacking Suite Hacking Suite Improved Light Cannon Grenade Launcher Datajack Flamer Peak State ------------ > --- POWER ------------ Improved Ion Engine > --- PROPULSION ------- Light Treads Light Treads > --- UTILITY ---------- Medium Storage Unit Structural Scanner > --- WEAPON ----------- Improved Light Cannon Improved Light Cannon > --- INVENTORY -------- Improved Ion Engine Light Treads Improved Terrain Scanner Hacking Suite Hacking Suite Beam Rifle Improved Light Cannon Improved Light Cannon Grenade Launcher Datajack [Rating: 12] Favorites ----------- Power Improved Ion Engine Engine Improved Ion Engine Propulsion Light Treads Treads Light Treads Utility Medium Storage Unit Device Structural Scanner Storage Medium Storage Unit Weapon Improved Light Cannon Energy Gun EM Pulse Gun Ballistic Cannon Improved Light Cannon Build | -11 -10 -10 ------- Run | Yrd Mat Sub Slots Evolved . | . . . Power . | . . . Propulsion . | . . . Utility . | . . . Weapon . | . . . Parts Attached 21 | 9 9 3 Power 5 | 2 2 1 Engine 5 | 2 2 1 Core . | . . . Reactor . | . . . Propulsion 5 | 2 2 1 Treads 5 | 2 2 1 Leg . | . . . Wheel . | . . . Hover . | . . . Flight . | . . . Utility 4 | 2 2 . Device 2 | 1 1 . Storage 2 | 1 1 . Processor . | . . . Hackware . | . . . Protection . | . . . Artifact . | . . . Weapon 7 | 3 3 1 Energy Gun 4 | 3 1 . Energy Cannon . | . . . Ballistic Gun . | . . . Ballistic Cannon 3 | . 2 1 Launcher . | . . . Special Weapon . | . . . Impact Weapon . | . . . Slashing Weapon . | . . . Piercing Weapon . | . . . Special Melee Weapon . | . . . Unidentified Prototypes . | . . . Parts Lost 5 | . 1 4 Power 1 | . . 1 Propulsion 2 | . . 2 Utility . | . . . Weapon 2 | . 1 1 Highest Loss Streak 2 | . 1 2 To Critical Strikes . | . . . Average Slot Usage (%) 99 | . 99 99 Engine 13 | . 14 13 Treads 27 | . 28 27 Device 14 | . 14 14 Storage 14 | . 14 14 Energy Gun 9 | . 13 . Ballistic Cannon 18 | . 14 28 Peak Build Rating 12 | 7 12 11 Average Rating 9 | 5 9 10 On Entrance 6 | . 7 11 Naked Turns . | . . . Heaviest Build 26 | 15 26 26 Greatest Support 40 | 40 40 40 Greatest Overweight (x) . | . . . Average Overweight (x) . | . . . Largest Inventory Capacity 10 | 8 10 10 Average Capacity 9 | 7 9 10 Most Carried 10 | 4 10 10 Average Carried 8 | 2 9 9 Final Capacity 10 | 8 10 10 Final Carried 10 | 4 10 9 Class Distribution -------------------- 100% | Mutant Dominant Class ---------------- Mutant | -10/Materials Mutant | -10/Subcaves Resources | -11 -10 -10 ----------- Run | Yrd Mat Sub Matter Collected 787 | 290 336 161 Remotely . | . . . Salvage Created 1192 | 111 1033 48 Parts 92 | 7 79 6 Haulers Intercepted 2 | . 2 . Recyclers Shooed 2 | 1 1 . Parts Field Recycled . | . . . Retrieved Matter . | . . . Parts Self-Destructed 4 | . . 4 Prevented . | . . . Kills | -11 -10 -10 ------- Run | Yrd Mat Sub Combat Hostiles Destroyed 25 | . 19 6 Guns 11 | . 11 . Cannons 13 | . 7 6 Classes Destroyed 10 | 2 7 1 Worker 6 | . 6 . Builder 2 | . 2 . Tunneler 2 | 2 . . Hauler 2 | . 2 . Recycler 2 | 1 1 . Operator 2 | . 2 . Watcher 2 | . 2 . Swarmer 9 | . 6 3 Grunt 13 | . 13 . Subdweller 3 | . . 3 Best Kill Streak 5 | 3 5 3 Combat Bots Only 3 | . 3 3 Max Kills in Single Turn 2 | 1 2 1 Gunslinging . | . . . Exploded . | . . . Melee . | . . . Uniques/NPCs Destroyed . | . . . Combat | -11 -10 -10 -------- Run | Yrd Mat Sub Hostile Shots Fired 122 | . 81 41 Missed 39 | . 31 8 Damage Taken 1322 | 40 559 723 Core 253 | . 57 196 Absorbed by Shields . | . . . Core Remaining (%) 100 | 100 . . Volleys Fired 98 | 4 63 31 Largest 2 | 2 2 2 Hottest 80 | 80 80 78 Shots Fired 189 | 8 126 55 Gun 92 | 8 84 . Cannon 97 | . 42 55 Launcher . | . . . Special . | . . . Kinetic 97 | . 42 55 Thermal . | . . . Explosive . | . . . Electromagnetic 92 | 8 84 . Robot Hit Streak 13 | 3 10 13 Robot Miss Streak 3 | 1 3 2 Penetration Max . | . . . Secondary Targets . | . . . Shots Hit Robots 125 | 5 79 41 Core Hits 58 | 4 43 11 Critical Kills . | . . . Critical Parts Destroyed . | . . . Critical Strikes 4 | 1 2 1 Blast 1 | . . 1 Corrupt 3 | 1 2 . Melee Attacks . | . . . Impact . | . . . Slashing . | . . . Piercing . | . . . Sneak Attacks . | . . . Combat Hostiles . | . . . Follow-up Attacks . | . . . Damage Inflicted 2452 | 126 1441 885 Guns 919 | 65 854 . Cannons 1391 | . 506 885 Explosions 124 | 61 63 . Melee . | . . . Ramming 18 | . 18 . Kinetic 1391 | . 506 885 Thermal 124 | 61 63 . Explosive . | . . . Electromagnetic 919 | 65 854 . Impact . | . . . Slashing . | . . . Piercing . | . . . Highest Corruption . | . . . Average Corruption . | . . . Corruption Purged . | . . . Corruption Blocked . | . . . Overload Shots . | . . . Overflow Damage 22 | . 22 . Projectiles 22 | . 22 . Explosions . | . . . Melee . | . . . Knockbacks 8 | . 3 5 Impact . | . . . Kinetic 8 | . 3 5 Secondary . | . . . Self-Inflicted Damage 67 | 40 27 . Shots 2 | 1 1 . Rammed 6 | . 6 . Targets Rammed 6 | . 6 . Kicked . | . . . Crushed . | . . . Highest Temperature 222 | 48 222 . Average Temperature 50 | 19 52 . Received Heat Transfer 228 | . 168 60 Siege Activations . | . . . Robots Corrupted 1 | . 1 . Combat Hostiles 1 | . 1 . Parts Fried 6 | 1 5 . Impact Corruptions . | . . . Robots Melted . | . . . Combat Hostiles . | . . . Parts Melted . | . . . Heat Transferred 150 | 50 100 . Parts Sabotaged . | . . . Parts Stolen . | . . . Parts Stripped . | . . . Power Chain Reactions 3 | 2 1 . Alert | -11 -10 -10 ------- Run | Yrd Mat Sub Peak Influence 316 | 15 316 . Initial 9 | . 9 . Average 130 | 3 143 . Maximum Alert Level 1 | . 1 . Low Security (%) 78 | 100 75 . Level 1 21 | . 24 . Level 2 . | . . . Level 3 . | . . . Level 4 . | . . . Level 5 . | . . . High Security . | . . . Max Security . | . . . Squads Dispatched 5 | . 5 . Investigation 4 | . 4 . Extermination . | . . . Reinforcement 1 | . 1 . Assault . | . . . Garrison . | . . . Intercept . | . . . Searches Triggered . | . . . Construction Impeded . | . . . Haulers Reinforced . | . . . Active Scanning Responses . | . . . Cargo Convoy Interrupts . | . . . Stealth | -11 -10 -10 --------- Run | Yrd Mat Sub Distress Signals 2 | . 2 . Communications Jammed . | . . . Distress Signals . | . . . Times Spotted 42 | . 35 7 Peak Tracking Total 4 | . 4 3 Tactical Retreats 2 | . 2 . Traps | -11 -10 -10 ------- Run | Yrd Mat Sub Traps Triggered 4 | . 2 2 Indirectly . | . . . Trap Hack Attempts . | . . . Triggered . | . . . Disarmed . | . . . Reprogrammed . | . . . Reused . | . . . Traps Extracted . | . . . Installed . | . . . Triggered . | . . . Machines | -11 -10 -10 ---------- Run | Yrd Mat Sub Machines Disabled 3 | . 3 . Max in Single Turn 1 | . 1 . Machines Repaired . | . . . Machines Dismantled . | . . . Machines Sabotaged . | . . . Overloaded Fab Kills . | . . . Hacking | -11 -10 -10 --------- Run | Yrd Mat Sub Machines Accessed 8 | . 8 . Terminals 7 | . 7 . Fabricators . | . . . Repair Stations . | . . . Recycling Units 1 | . 1 . Scanalyzers . | . . . Garrison Access . | . . . Total Hacks 32 | . 32 . Successful 15 | . 15 . Failed 17 | . 17 . Catastrophic 4 | . 4 . Database Lockouts . | . . . Manual 19 | . 19 . Terminals 31 | . 31 . Fabricators . | . . . Repair Stations . | . . . Recycling Units 1 | . 1 . Scanalyzers . | . . . Garrison Access . | . . . Terminal Hacks 13 | . 13 . Robot Schematic 1 | . 1 . Robot Analysis 4 | . 4 . Prototype ID Bank 1 | . 1 . Alert Level 2 | . 2 . Unreport Threat 1 | . 1 . Locate Traps 2 | . 2 . Dispatch Records 1 | . 1 . Zone Layout 1 | . 1 . Fabricator Hacks . | . . . Repair Station Hacks . | . . . Recycling Unit Hacks 1 | . 1 . Report Inventory 1 | . 1 . Scanalyzer . | . . . Garrison Access Hacks . | . . . Unauthorized Hacks 1 | . 1 . Terminals 1 | . 1 . Operators 1 | . 1 . Fabricators . | . . . Repair Stations . | . . . Recycling Units . | . . . Scanalyzers . | . . . Garrison Access . | . . . Data Cores Recovered 1 | . 1 . Used . | . . . Hacking Detections 6 | . 6 . Full Trace Events 3 | . 3 . Feedback Events . | . . . Feedback Blocked . | . . . Robot Schematics Acquired 1 | . 1 . Robots Built . | . . . Authchips . | . . . Time . | . . . Total Robot Build Rating . | . . . Part Schematics Acquired . | . . . Parts Built . | . . . Authchips . | . . . Time . | . . . Total Part Build Rating . | . . . Parts Repaired . | . . . Time . | . . . Parts Recycled . | . . . Recycled Matter . | . . . Retrieved Matter . | . . . Retrieved Components . | . . . Parts Scanalyzed . | . . . Part Schematics Acquired . | . . . Parts Damaged . | . . . Bothacking | -11 -10 -10 ------------ Run | Yrd Mat Sub Used RIF Installer . | . . . Robots Hacked . | . . . Non-combat . | . . . Combat . | . . . Robot Hacks Applied . | . . . Relay Couplers Released . | . . . Fabnet Peak Effective % . | . . . Robots Rewired . | . . . Allies Hacked . | . . . Hacks Repelled . | . . . Allies | -11 -10 -10 -------- Run | Yrd Mat Sub Total Allies . | . . . Largest Group . | . . . Highest-Rated Group . | . . . Highest-Rated Ally . | . . . Total Orders . | . . . Ally Attacks . | . . . Total Damage . | . . . Kills . | . . . Allies Corrupted . | . . . Allies Melted . | . . . Intel | -11 -10 -10 ------- Run | Yrd Mat Sub Robot Analysis Total 4 | . 4 . Derelict Logs Recovered . | . . . Drone Launches . | . . . Drone Recoveries . | . . . Exploration | -11 -10 -10 ------------- Run | Yrd Mat Sub Turns Passed 2134 | 136 1382 616 Spaces Moved 1035 | 70 670 295 Core 6 | 6 . . Treads 1029 | 64 670 295 Legs . | . . . Wheels . | . . . Hover . | . . . Flight . | . . . Fastest Speed 50 | 50 160 160 Average Speed 159 | 150 160 160 Slowest Speed 160 | 160 160 160 Overloaded Moves . | . . . Propulsion Burnouts . | . . . Robots Hopped . | . . . Cave-ins Triggered . | . . . Exploration Rate (%) 43 | 5 98 26 Regions Visited 2 Branch Regions 1 Pre-discovered Areas . | . . . Known Exits Taken . | . . . Unknown Exits Taken 2 | 1 1 . Scrap Searched . | . . . Spaces Dug . | . . . Terrain Destroyed 14 | 5 9 . Melee . | . . . Projectile 4 | . 4 . AOE 10 | 5 5 . Terrain Rammed . | . . . Walls Destroyed . | . . . Machines Disabled . | . . . Actions | -11 -10 -10 --------- Run | Yrd Mat Sub Total 1326 | 89 857 380 Wait 131 | 3 79 49 Move 1033 | 69 669 295 Hop . | . . . Pick Up 20 | 3 15 2 Fast Attach 11 | 8 3 . Attach 4 | . 1 3 Detach . | . . . Swap 6 | 1 5 . Drop 17 | 1 16 . Fire 98 | 4 63 31 Melee . | . . . Ram . | . . . Kick . | . . . Crush 6 | . 6 . Escape Stasis . | . . . Rewire . | . . . Trap . | . . . Miscellaneous . | . . . Route ------- -11/Scrapyard -10/Materials (discovered 6 exits: [*Mat x3] / [*Min x2] / [*Sub]) -10/Subcaves History --------- Turn | Location | Event 2 | -11/Scrapyard | Met Revision 17 41 | -11/Scrapyard | Discovered new exit (range 15) 137 | -11/Scrapyard | Entered Materials 312 | -10/Materials | Build established: Mutant 319 | -10/Materials | Discovered new exit (range 15) 683 | -10/Materials | Discovered new exit (range 11) 740 | -10/Materials | Discovered new exit (range 7) 1005 | -10/Materials | Discovered new exit (range 15) 1166 | -10/Materials | Discovered new exit (range 15) 1377 | -10/Materials | Discovered new exit (range 13) 1519 | -10/Materials | Entered Subcaves 1520 | -10/Subcaves | A swath of the cavern ceiling suddenly collapsed 1729 | -10/Subcaves | Core integrity fell below 50% 1786 | -10/Subcaves | Shifting Twisted Machinery released Flamer 1786 | -10/Subcaves | Shifting Twisted Machinery released Battle Rifle 2119 | -10/Subcaves | Core integrity fell below 20% 2135 | -10/Subcaves | Destroyed by 15-XZ1(R) with Subdweller Laser Last Messages --------------- 01904_ Flight Unit fries itself beyond repair. 01904_ Acquired 15 matter. 01907_ Acquired Lgt. Ion Engine. 01908_ Acquired 4 matter. 01911_ Acquired 2 matter. 01961_ Acquired 13 matter. 02022_ Triggered Piercing Trap. 02022_ Spikes shoot up from the floor. 02022_ Critical hit (Impale). 02026_ Triggered Piercing Trap. 02026_ Spikes shoot up from the floor. 02026_ Critical hit (Impale). 02101_ UA-5BX(R) destroyed. 02104_ Acquired 14 matter. 02106_ Acquired 5 matter. 02108_ Acquired 18 matter. 02120_ 15-XZ1(R) knocked back. 02126_ Lgt. Treads destroyed. 02132_ 15-XZ1(R) affixes Scrap Shield Fragment to Scrap Shield. Map ----- +----------------------------------------------------+ | ?????????????????????????????????????????????????? | | ?????????????????????????????????????????????????? | | ?????????????????????????????????????????????????? | | ?????????????????????????????????????????????????? | | ?????????????????????????????????????????????????? | | ?????????????????????????????????????????????????? | | ?????????????????????????????????????????????????? | | ?????????????????????????????????????????????????? | | ?????????????????????????????????????????????????? | | ?????????????????????????????????????????????????? | | ??????????????????????? ?????????????????????????? | | ???????????????????????? ????????????????????????? | | ???????????????????????? "?"????????????????????? | | ???????????????????????? """"???"###?????????????? | | ???????????????????????# """??""###?????????????? | | ???????????????????????## " ??"" ##?????????????? | | ???????????????????????## """" ???????????????? | | ???????????????????????## ## ???????????????? | | ???????????????????????# ## """??????????????? | | ????????????????????????? """"??????????????? | | ????????????????????????? """"""#????????????? | | ?????????????????????????? """"##????????????? | | ?????????????????######### " ###????????????? | | ????????????????########### ##?????????????? | | ????????????????### ##% ## "##?????????????? | | ????????????????## % %R@ "" """""????????????? | | ???????????????### ###"" """""?????????????? | | ???????????????### % % ###"" """ ?????????????? | | ???????????????## #% ### ##??????????????? | | ???????????????## ## ### ##??????????????? | | ???????????????### ### ## ##??????????????? | | ???????????????## #### #??????????????? | | ???????????????### #### ##??????????????? | | ???????????????## #### ??????????????? | | ######???????#### ##### ?????????????? | | ################# "#### ##???????????? | | # ########### " #### ######???????????? | | # # ""##??""""######???????????? | | ### ###???" #???????????????? | | ### ^##########???????????????????????? | | ### #########????????????????????????? | | ## ##???????????????????????????????? | | # ## ###??????????????????????????????? | | # ### ## ##??????????????????????????????? | | # ######### ^ ??????????????????????????????? | | %######### ????????????????????????????? | | ##????#### ##?????????????????????????? | | ##?????##### #####?????????????????????????? | | #######???????##########?????????????????????????? | | #######?????????#####????????????????????????????? | +----------------------------------------------------+ Best States ------------- Heat Dissipation 25 Energy Generation 12 Energy Capacity 265 Matter Stores 300 Matter Capacity 300 Sight Range 16 Terrain Scan Density 10 Evasion (%) 40 Recoil Reduction 2 Item Schematics ----------------- None Robot Schematics ------------------ M-13 Machinist | -10/Materials | Hacked Fabricated ------------ Nothing Alien Tech Used ----------------- None Achievements -------------- None Challenges ------------ None Game ------ Seed TeslaAssemblyDiverter Manual? 0 Play Time 00:23:32 Cumulative 64.4 hours Start 2024.09.06 @ 21:19:34 End 2024.09.06 @ 21:40:55 Sessions 1 Manual Loads 0 Difficulty Rogue Special Mode None Game No. 42 Rogue 42 Adventurer 0 Explorer 0 Win Type - Total 0 Types 0/0/0/0/0/0/0/0/0 Lore% 22 Gallery% 46 Achievement% 39 Wizard Run 0 Options --------- Layout 1 ASCII 0 Keyboard 0 Movement Numpad Keybinds 0 Fullscreen 1 Font 24/Smallcaps Map View 50x35 Zoom Use 0% Tactical HUD 1 Map Filters NONE Filters NONE Steam 1 RUN: 4263b190-c69d-48d0-8116-ce2f0325ae28